fUSD/lending_fUSD_20250421
["ID","MTS","AMOUNT","RATE_DAILY","PERIOD"]
[358503001,1745218238444,-522.14069282,0.00063013,120]
[358503002,1745218238453,-509.67213527,0.00063013,120]
[358503003,1745218238463,-500.0,0.00063013,120]
[358503004,1745218238472,-500.0,0.00063013,120]
[358503005,1745218238482,-510.48658596,0.00063013,120]
[358503006,1745218238491,-500.0,0.00063013,120]
[358503007,1745218238500,-500.0,0.00063013,120]
[358503008,1745218238510,-508.19358261,0.00063013,120]
[358503009,1745218238519,-431.87457738,0.00063013,120]
[358503010,1745218238528,-500.0,0.00063013,120]
[358503011,1745218238538,-500.0,0.00063013,120]
[358503012,1745218238548,-239.8799124,0.00063013,120]
[358503013,1745218238558,-170.73244895,0.00063013,120]
[358503014,1745218238567,-500.0,0.00063013,120]
[358503015,1745218238577,-500.0,0.00063013,120]
[358503016,1745218238586,-500.0,0.00063013,120]
[358503017,1745218238595,-517.96380861,0.00063013,120]
[358503018,1745218238605,-517.48407692,0.00063013,120]
[358503019,1745218238615,-523.54175591,0.00063013,120]
[358503020,1745218238624,-500.0,0.00063013,120]
[358503021,1745218238634,-515.02709183,0.00063013,120]
[358503022,1745218238793,-500.0,0.00063013,120]
[358503023,1745218238803,-516.58444326,0.00063013,120]
[358503024,1745218238812,-500.0,0.00063013,120]
[358503025,1745218238822,-512.51392121,0.00063013,120]
[358503026,1745218238833,-537.79886844,0.00063013,120]
[358503027,1745218238842,-528.50294025,0.00063013,120]
[358503028,1745218238851,-502.41908503,0.00063013,120]
[358503029,1745218238860,-513.050139,0.00063013,120]
[358503030,1745218238870,-270.19695642,0.00063013,120]
[358503031,1745218238879,-500.0,0.00063013,120]
[358503032,1745218238889,-973.42,0.00063013,120]
[358503033,1745218238898,-528.94503763,0.00063013,120]
[358503034,1745218238908,-500.0,0.00063013,120]
[358503035,1745218238917,-508.52585241,0.00063013,120]
[358503036,1745218238927,-506.8656913,0.00063013,120]
[358503037,1745218238936,-500.0,0.00063013,120]
[358503038,1745218238945,-500.0,0.00063013,120]
[358503039,1745218238954,-574.47228221,0.00063013,120]
[358503040,1745218238963,-500.0,0.00063013,120]
[358503041,1745218238983,-505.4096399,0.00063013,120]
[358503042,1745218238994,-500.0,0.00063013,120]
[358503043,1745218239004,-500.0,0.00063013,120]
[358503044,1745218239015,-500.0,0.00063013,120]
[358503045,1745218239025,-537.17308493,0.00063013,120]
[358503046,1745218239035,-576.50626452,0.00063013,120]
[358503047,1745218239046,-552.17207215,0.00063013,120]
[358503048,1745218239057,-527.53391386,0.00063013,120]
[358503049,1745218239068,-570.41510949,0.00063013,120]
[358503050,1745218239079,-500.0,0.00063013,120]
[358503051,1745218239089,-500.0,0.00063013,120]
[358503052,1745218239099,-500.0,0.00063013,120]
[358503053,1745218239108,-500.0,0.00063013,120]
[358503054,1745218239118,-500.0,0.00063013,120]
[358503055,1745218239128,-500.0,0.00063013,120]
[358503056,1745218239137,-500.0,0.00063013,120]
[358503057,1745218239147,-500.0,0.00063013,120]
[358503058,1745218239156,-496.31353602,0.00063013,120]
[358503059,1745218239166,-500.0,0.00063013,120]
[358503060,1745218239175,-502.57506222,0.00063013,120]
[358503061,1745218239185,-533.65285747,0.00063013,120]
[358503062,1745218239195,-505.09588526,0.00063013,120]
[358503063,1745218239206,-500.0,0.00063013,120]
[358503064,1745218239217,-500.0,0.00063013,120]
[358503065,1745218239230,-500.0,0.00063013,120]
[358503066,1745218239239,-539.75018618,0.00063013,120]
[358503067,1745218239249,-500.0,0.00063013,120]
[358503068,1745218239259,-535.34739309,0.00063013,120]
[358503069,1745218239269,-500.0,0.00063013,120]
[358503070,1745218239279,-500.0,0.00063013,120]
[358503071,1745218239288,-500.0,0.00063013,120]
[358503072,1745218239298,-1586.95,0.00063013,120]
[358503073,1745218239309,-500.0,0.00063013,120]
[358503074,1745218239319,-500.0,0.00063013,120]
[358503075,1745218239329,-500.0,0.00063013,120]
[358503076,1745218239339,-500.0,0.00063013,120]
[358503077,1745218239349,-500.0,0.00063013,120]
[358503078,1745218239359,-546.73523348,0.00063013,120]
[358503079,1745218239368,-500.0,0.00063013,120]
[358503080,1745218239378,-500.0,0.00063013,120]
[358503081,1745218239389,-500.0,0.00063013,120]
[358503082,1745218239399,-500.0,0.00063013,120]
[358503083,1745218239409,-500.0,0.00063013,120]
[358503084,1745218239419,-500.0,0.00063013,120]
[358503085,1745218239429,-500.0,0.00063013,120]
[358503086,1745218239440,-500.0,0.00063013,120]
[358503087,1745218239449,-483.61157394,0.00063013,120]
[358503088,1745218239460,-500.0,0.00063013,120]
[358503092,1745218239469,-500.0,0.00063013,120]
[358503095,1745218239478,-980.45,0.00063013,120]
[358503098,1745218239488,-500.0,0.00063013,120]
[358503101,1745218239498,-500.0,0.00063013,10]
[358503105,1745218239507,-500.0,0.00063013,120]
[358503106,1745218239518,-500.0,0.00063013,120]
[358503108,1745218239528,-500.0,0.00063013,120]
[358503109,1745218239538,-500.0,0.00063013,120]
[358503110,1745218239548,-500.0,0.00063013,120]
[358503111,1745218239557,-500.0,0.00063013,120]
[358503113,1745218239566,-524.19774049,0.00063013,120]
[358503114,1745218239576,-500.0,0.00063013,12]
[358503116,1745218239585,-517.07906823,0.00063013,120]
[358503117,1745218239594,-543.9556144,0.00063013,120]
[358503119,1745218239603,-506.63485367,0.00063013,120]
[358503121,1745218239612,-500.0,0.00063013,120]
[358503122,1745218239622,-555.82582885,0.00063013,120]
[358503123,1745218239631,-500.0,0.00063013,120]
[358503124,1745218239640,-500.0,0.00063013,120]
[358503125,1745218239650,-500.0,0.00063013,120]
[358503126,1745218239661,-505.39295571,0.00063013,120]
[358503127,1745218239671,-530.09584812,0.00063013,120]
[358503128,1745218239680,-565.56746368,0.00063013,120]
[358503129,1745218239690,-540.04179951,0.00063013,120]
[358503130,1745218239699,-500.0,0.00063013,120]
[358503131,1745218239709,-407.45219782,0.00063013,120]
[358503132,1745218239718,-500.0,0.00063013,120]
[358503133,1745218239728,-500.0,0.00063013,120]
[358503134,1745218239738,-517.25861802,0.00063013,120]
[358503135,1745218239747,-508.92842956,0.00063013,120]
[358503136,1745218239756,-500.0,0.00063013,120]
[358503137,1745218239766,-528.53,0.00063013,120]
[358503138,1745218239775,-511.2095851,0.00063013,120]
[358503139,1745218239785,-500.0,0.00063013,120]
[358503140,1745218239795,-500.0,0.00063013,120]
[358503141,1745218239804,-500.0,0.00063013,120]
[358503142,1745218239813,-500.0,0.00063013,120]
[358503143,1745218239823,-500.0,0.00063013,120]
[358503144,1745218239834,-500.0,0.00063013,120]
[358503145,1745218239843,-500.0,0.00063013,120]
[358503146,1745218239853,-530.89504373,0.00063013,120]
[358503147,1745218239863,-500.0,0.00063013,120]
[358503148,1745218239873,-522.23794724,0.00063013,120]
[358503149,1745218239882,-500.0,0.00063013,120]
[358503150,1745218239892,-500.0,0.00063013,120]
[358503151,1745218239901,-558.8831218,0.00063013,120]
[358503152,1745218239910,-500.0,0.00063013,120]
[358503153,1745218239920,-500.0,0.00063013,120]
[358503154,1745218239929,-640.8099035,0.00063013,120]
[358503155,1745218239938,-500.0,0.00063013,120]
[358503156,1745218239948,-500.0,0.00063013,120]
[358503157,1745218239957,-500.0,0.00063013,120]
[358503158,1745218239967,-519.68035074,0.00063013,120]
[358503159,1745218239977,-500.0,0.00063013,120]
[358503160,1745218239986,-500.0,0.00063013,30]
[358503161,1745218239995,-500.0,0.00063013,120]
[358503162,1745218240004,-500.0,0.00063013,120]
[358503163,1745218240013,-500.0,0.00063013,120]
[358503164,1745218240023,-499.50801198,0.00063013,120]
[358503165,1745218240033,-500.0,0.00063013,120]
[358503166,1745218240042,-500.0,0.00063013,120]
[358503167,1745218240055,-500.0,0.00063013,120]
[358503168,1745218240064,-250.0,0.00063013,120]
[358503169,1745218240074,-500.0,0.00063013,120]
[358503170,1745218240083,-500.0,0.00063013,120]
[358503171,1745218240094,-500.0,0.00063013,120]
[358503172,1745218240103,-514.22434345,0.00063013,120]
[358503173,1745218240112,-500.0,0.00063013,120]
[358503174,1745218240122,-500.0,0.00063013,120]
[358503175,1745218240131,-500.0,0.00063013,120]
[358503176,1745218240140,-1000.9,0.00063013,120]
[358503177,1745218240150,-1000.9,0.00063013,120]
[358503178,1745218240159,-550.48563296,0.00063013,120]
[358503179,1745218240168,-518.09002428,0.00063013,120]
[358503180,1745218240178,-500.0,0.00063013,120]
[358503181,1745218240187,-500.0,0.00063013,120]
[358503182,1745218240196,-500.0,0.00063013,120]
[358503183,1745218240206,-500.0,0.00063013,120]
[358503184,1745218240216,-500.0,0.00063013,120]
[358503185,1745218240228,-500.0,0.00063013,120]
[358503186,1745218240238,-500.0,0.00063013,120]
[358503187,1745218240247,-554.60362736,0.00063013,120]
[358503188,1745218240257,-500.0,0.00063013,120]
[358503189,1745218240267,-850.18,0.00063013,120]
[358503190,1745218240276,-500.0,0.00063013,120]
[358503191,1745218240285,-544.89,0.00063013,120]
[358503192,1745218240295,-500.0,0.00063013,120]
[358503193,1745218240305,-500.0,0.00063013,120]
[358503194,1745218240315,-500.0,0.00063013,120]
[358503195,1745218240325,-506.11782053,0.00063013,120]
[358503196,1745218240335,-500.0,0.00063013,120]
[358503197,1745218240344,-500.0,0.00063013,120]
[358503198,1745218240354,-500.0,0.00063013,120]
[358503199,1745218240363,-500.0,0.00063013,120]
[358503200,1745218240374,-532.26604069,0.00063013,120]
[358503201,1745218240383,-500.0,0.00063013,120]
[358503202,1745218240394,-542.87896645,0.00063013,120]
[358503203,1745218240403,-500.0,0.00063013,120]
[358503204,1745218240412,-500.0,0.00063013,120]
[358503205,1745218240422,-500.0,0.00063013,120]
[358503206,1745218240431,-500.0,0.00063013,120]
[358503207,1745218240441,-1028.09,0.00063013,120]
[358503208,1745218240450,-514.12977325,0.00063013,120]
[358503209,1745218240459,-500.0,0.00063013,120]
[358503210,1745218240469,-500.0,0.00063013,120]
[358503211,1745218240478,-500.0,0.00063013,120]
[358503212,1745218240487,-512.97,0.00063013,120]
[358503213,1745218240496,-521.69765095,0.00063013,120]
[358503214,1745218240506,-500.0,0.00063013,120]
[358503215,1745218240515,-519.32851682,0.00063013,120]
[358503216,1745218240526,-500.0,0.00063013,120]
[358503217,1745218240535,-500.0,0.00063013,120]
[358503218,1745218240545,-500.0,0.00063013,120]
[358503219,1745218240555,-321.77997201,0.00063013,120]
[358503220,1745218240566,-500.0,0.00063013,120]
[358503221,1745218240575,-506.57271024,0.00063013,120]
[358503222,1745218240585,-500.0,0.00063013,120]
[358503223,1745218240594,-429.62605538,0.00063013,120]
[358503224,1745218240603,-541.41,0.00063013,120]
[358503225,1745218240612,-524.86949902,0.00063013,120]
[358503226,1745218240621,-500.0,0.00063013,120]
[358503227,1745218240631,-500.0,0.00063013,120]
[358503228,1745218240640,-500.0,0.00063013,120]
[358503229,1745218240649,-500.0,0.00063013,120]
[358503230,1745218240658,-500.0,0.00063013,120]
[358503231,1745218240667,-500.0,0.00063013,120]
[358503232,1745218240676,-500.0,0.00063013,120]
[358503233,1745218240685,-500.0,0.00063013,120]
[358503234,1745218240694,-906.7,0.00063013,120]
[358503235,1745218240703,-500.0,0.00063013,8]
[358503236,1745218240713,-411.2321765,0.00063013,120]
[358503237,1745218240723,-586.10973081,0.00063013,120]
[358503238,1745218240734,-500.0,0.00063013,120]
[358503239,1745218240743,-598.26690595,0.00063013,120]
[358503240,1745218240752,-560.37630026,0.00063013,120]
[358503241,1745218240762,-500.0,0.00063013,120]
[358503242,1745218240773,-629.84781352,0.00063013,120]
[358503243,1745218240783,-582.29981595,0.00063013,120]
[358503244,1745218240792,-500.0,0.00063013,120]
[358503245,1745218240802,-500.0,0.00063013,120]
[358503246,1745218240812,-500.0,0.00063013,120]
[358503247,1745218240822,-621.39169438,0.00063013,120]
[358503248,1745218240831,-500.0,0.00063013,120]
[358503249,1745218240840,-500.0,0.00063013,120]
[358503250,1745218240850,-500.0,0.00063013,120]
[358503251,1745218240859,-500.0,0.00063013,120]
[358503252,1745218240868,-500.0,0.00063013,120]
[358503253,1745218240878,-500.0,0.00063013,120]
[358503254,1745218240887,-500.0,0.00063013,120]
[358503255,1745218240896,-500.0,0.00063013,120]
[358503256,1745218240906,-500.0,0.00063013,120]
[358503257,1745218240915,-500.0,0.00063013,120]
[358503258,1745218240924,-500.0,0.00063013,120]
[358503259,1745218240933,-625.50746254,0.00063013,120]
[358503260,1745218240942,-543.85444649,0.00063013,120]
[358503261,1745218240952,-500.0,0.00063013,120]
[358503262,1745218240962,-627.4494026,0.00063013,120]
[358503263,1745218240971,-500.0,0.00063013,120]
[358503264,1745218240981,-500.0,0.00063013,120]
[358503265,1745218240990,-500.0,0.00063013,120]
[358503266,1745218240999,-267.33566992,0.00063013,120]
[358503267,1745218241009,-544.79583879,0.00063013,120]
[358503268,1745218241018,-523.30995052,0.00063013,120]
[358503269,1745218241028,-581.20786552,0.00063013,120]
[358503270,1745218241037,-500.0,0.00063013,120]
[358503271,1745218241046,-500.0,0.00063013,120]
[358503272,1745218241055,-533.26390759,0.00063013,120]
[358503273,1745218241064,-523.67123264,0.00063013,120]
[358503274,1745218241073,-511.33194378,0.00063013,120]
[358503275,1745218241082,-1554.76,0.00063013,2]
[358503276,1745218241092,-500.0,0.00063013,120]
[358503277,1745218241102,-341.0846403,0.00063013,120]
[358503278,1745218241111,-551.57591507,0.00063013,120]
[358503279,1745218241120,-500.0,0.00063013,120]
[358503280,1745218241129,-519.11,0.00063013,120]
[358503281,1745218241139,-500.0,0.00063013,120]
[358503282,1745218241151,-176.8979223,0.00063013,120]
[358503283,1745218241161,-500.0,0.00063013,120]
[358503284,1745218241171,-513.00526959,0.00063013,120]
[358503285,1745218241180,-676.59,0.00063013,120]
[358503286,1745218241190,-549.39229299,0.00063013,120]
[358503287,1745218241199,-544.42752104,0.00063013,120]
[358503288,1745218241209,-500.0,0.00063013,120]
[358503289,1745218241219,-512.90726598,0.00063013,120]
[358503290,1745218241231,-369.41525961,0.00063013,120]
[358503291,1745218241241,-500.0,0.00063013,120]
[358503292,1745218241251,-500.0,0.00063013,120]
[358503293,1745218241261,-500.0,0.00063013,120]
[358503294,1745218241271,-646.12,0.00063013,120]
[358503295,1745218241280,-528.0446655,0.00063013,120]
[358503296,1745218241290,-500.0,0.00063013,120]
[358503297,1745218241300,-151.0,0.00063013,120]
[358503298,1745218241310,-551.29144262,0.00063013,120]
[358503299,1745218241319,-500.0,0.00063013,120]
[358503300,1745218241329,-500.0,0.00063013,120]
[358503301,1745218241339,-500.0,0.00063013,120]
[358503302,1745218241348,-500.0,0.00063013,3]
[358503303,1745218241359,-153.776174,0.00063013,120]
[358503304,1745218241369,-564.28,0.00063013,120]
[358503305,1745218241378,-500.0,0.00063013,120]
[358503306,1745218241388,-500.0,0.00063013,120]
[358503307,1745218241398,-500.0,0.00063013,120]
[358503308,1745218241408,-500.0,0.00063013,120]
[358503309,1745218241417,-517.95427251,0.00063013,120]
[358503310,1745218241427,-6707.36,0.00063013,7]
[358503311,1745218241438,-500.0,0.00063013,120]
[358503312,1745218241450,-500.0,0.00063013,120]
[358503313,1745218241460,-348.86394823,0.00063013,120]
[358503314,1745218241470,-500.0,0.00063013,120]
[358503315,1745218241480,-500.0,0.00063013,2]
[358503316,1745218241490,-500.0,0.00063013,120]
[358503317,1745218241500,-500.0,0.00063013,120]
[358503318,1745218241510,-501.62396758,0.00063013,2]
[358503319,1745218241520,-151.0,0.00063013,120]
[358503320,1745218241530,-500.0,0.00063013,2]
[358503321,1745218241541,-500.0,0.00063013,120]
[358503322,1745218241551,-500.0,0.00063013,120]
[358503323,1745218241561,-508.29858572,0.00063013,2]
[358503324,1745218241571,-500.0,0.00063013,120]
[358503325,1745218241581,-500.0,0.00063014,120]
[358503326,1745218241590,-500.0,0.00063014,120]
[358503327,1745218241600,-500.0,0.00063014,120]
[358503328,1745218241609,-291.48920364,0.00063014,120]
[358503329,1745218241619,-500.0,0.00063014,120]
[358503330,1745218241629,-500.0,0.00063014,120]
[358503331,1745218241638,-500.0,0.00063014,120]
[358503332,1745218241647,-500.0,0.00063014,120]
[358503333,1745218241657,-500.0,0.00063014,120]
[358503334,1745218241667,-500.0,0.00063014,120]
[358503335,1745218241677,-3358.93600946,0.00063126,15]
[358503336,1745218241687,-894.638,0.00063371,2]
[358503337,1745218241697,-1000.0,0.00063384,30]
[358503338,1745218241707,-14100.7872306,0.00063396,5]
[358503339,1745218241729,-1167.2394165,0.00063396,5]
[358503340,1745218241739,-2435.5145835,0.00063406,2]
[358503341,1745218241766,-21464.4854165,0.00063406,2]
[358503342,1745218241776,-21159.18943237,0.00063551,4]
[358503343,1745218241787,-1049.29669183,0.00063551,4]
[358503344,1745218241797,-9466.87601582,0.00063551,5]
[358503345,1745218241836,-819.02317037,0.00063551,5]
[358503346,1745218241847,-614.704,0.00063551,5]
[358503351,1745218242634,-1567.17304762,0.00063551,5]
[358503352,1745218242682,-305.45098023,0.00063551,5]
[358503353,1745218242812,-500.0,0.00063013,120]
[358503354,1745218242822,-52.86475445,0.00063551,5]
[358503358,1745218243331,-2441.93467861,0.00063551,5]
[358503359,1745218243341,-500.0,0.00063561,120]
[358503360,1745218243351,-500.0,0.00063561,120]
[358503361,1745218243360,-541.48190458,0.00063561,120]
[358503362,1745218243370,-500.0,0.00063561,120]
[358503363,1745218243380,-591.7,0.00063561,120]
[358503364,1745218243389,-500.0,0.00063561,120]
[358503365,1745218243399,-500.0,0.00063561,120]
[358503366,1745218243408,-500.0,0.00063561,120]
[358503367,1745218243418,-500.0,0.00063561,120]
[358503368,1745218243428,-500.0,0.00063561,120]
[358503369,1745218243438,-973.42,0.00063561,120]
[358503370,1745218243448,-500.0,0.00063561,120]
[358503371,1745218243457,-500.0,0.00063561,120]
[358503372,1745218243467,-500.0,0.00063561,120]
[358503373,1745218243478,-271.42030784,0.00063561,120]
[358503374,1745218243488,-513.41541576,0.00063561,120]
[358503375,1745218243498,-500.0,0.00063561,120]
[358503376,1745218243508,-500.0,0.00063561,120]
[358503377,1745218243518,-500.0,0.00063561,120]
[358503378,1745218243530,-1586.95,0.00063561,120]
[358503379,1745218243539,-500.0,0.00063561,120]
[358503380,1745218243553,-980.45,0.00063561,120]
[358503381,1745218243565,-500.0,0.00063561,120]
[358503382,1745218243574,-549.7520403,0.00063561,120]
[358503383,1745218243584,-500.0,0.00063561,12]
[358503384,1745218243594,-489.33012233,0.00063561,120]
[358503385,1745218243603,-561.23,0.00063561,120]
[358503386,1745218243614,-500.0,0.00063561,120]
[358503387,1745218243623,-500.0,0.00063561,120]
[358503388,1745218243633,-500.0,0.00063561,120]
[358503389,1745218243642,-230.96,0.00063561,120]
[358503390,1745218243651,-500.0,0.00063561,120]
[358503391,1745218243660,-500.0,0.00063561,120]
[358503392,1745218243670,-500.0,0.00063561,120]
[358503393,1745218243681,-151.0,0.00063561,120]
[358503394,1745218243691,-500.0,0.00063561,120]
[358503395,1745218243700,-500.0,0.00063561,120]
[358503396,1745218243709,-850.18,0.00063561,120]
[358503397,1745218243721,-151.0,0.00063561,120]
[358503398,1745218243730,-544.89,0.00063561,120]
[358503399,1745218243740,-44.84274277,0.00063561,120]
[358503400,1745218245525,-106.15725723,0.00063561,120]
[358503401,1745218245535,-500.0,0.00063561,120]
[358503402,1745218245544,-500.0,0.00063561,120]
[358503403,1745218245554,-1028.09,0.00063561,120]
[358503404,1745218245563,-500.0,0.00063561,120]
[358503405,1745218245571,-512.97,0.00063561,120]
[358503406,1745218245582,-500.0,0.00063561,120]
[358503407,1745218245593,-500.0,0.00063561,120]
[358503408,1745218245603,-500.0,0.00063561,120]
[358503409,1745218245612,-173.295316,0.00063561,120]
[358503410,1745218245621,-541.41,0.00063561,120]
[358503411,1745218245631,-500.0,0.00063561,120]
[358503412,1745218245640,-500.0,0.00063561,120]
[358503413,1745218245650,-465.23,0.00063561,120]
[358503414,1745218245660,-906.7,0.00063561,120]
[358503415,1745218245669,-151.0,0.00063561,120]
[358503416,1745218245679,-151.0,0.00063561,2]
[358503417,1745218245688,-151.0,0.00063561,120]
[358503418,1745218245698,-376.20439277,0.00063561,120]
[358503419,1745218245741,-123.79560723,0.00063561,120]
[358503420,1745218245751,-151.0,0.00063561,120]
[358503421,1745218245761,-151.0,0.00063561,120]
[358503422,1745218245771,-151.0,0.00063561,120]
[358503423,1745218245780,-1554.76,0.00063561,2]
[358503424,1745218245790,-519.11,0.00063561,120]
[358503425,1745218245799,-500.0,0.00063561,120]
[358503426,1745218245808,-500.0,0.00063561,120]
[358503427,1745218245817,-676.59,0.00063561,120]
[358503428,1745218245827,-500.0,0.00063561,120]
[358503429,1745218245836,-646.12,0.00063561,120]
[358503430,1745218245845,-500.0,0.00063561,120]
[358503431,1745218245854,-564.28,0.00063561,120]
[358503432,1745218245864,-500.0,0.00063561,120]
[358503433,1745218245873,-3434.12887577,0.00063561,7]
[358503434,1745218245884,-472.189,0.00063561,7]
[358503435,1745218245896,-2801.04212423,0.00063561,7]
[358503436,1745218245906,-362.4,0.00063561,120]
[358503437,1745218245915,-555.37,0.00063561,120]
[358503438,1745218245926,-32.27242716,0.00063561,2]
[358503441,1745218246030,-467.72757284,0.00063561,2]
[358503442,1745218246039,-500.0,0.00063561,120]
[358503443,1745218246049,-500.0,0.00063561,120]
[358503444,1745218246058,-151.0,0.00063561,120]
[358503445,1745218246069,-176.65,0.00063648,120]
[358503446,1745218246079,-391.77,0.00063672,2]
[358503447,1745218246090,-7634.01332353,0.0006389,5]
[358503448,1745218246102,-5800.0,0.000639,23]
[358503449,1745218246111,-4300.0,0.000639,23]
[358503450,1745218246121,-44416.9722483,0.00063998,4]
[358503451,1745218246131,-45804.0799412,0.00063998,5]
[358503452,1745218246142,-300.0,0.00064,120]
[358503453,1745218246153,-88888.0,0.00064008,120]
[358503454,1745218246163,-22208.4861242,0.00064088,4]
[358503455,1745218246172,-44416.9722483,0.00064098,4]
[358503456,1745218246182,-61072.1065882,0.00064098,5]
[358503457,1745218246192,-154.902933,0.00064098,120]
[358503458,1745218246201,-254.187,0.00064098,120]
[358503459,1745218246211,-151.0,0.00064098,120]
[358503460,1745218246221,-22208.4861242,0.00064099,4]
[358503461,1745218246233,-15268.0266471,0.00064099,5]
[358503462,1745218246243,-1000.9,0.00064107,120]
[358503463,1745218246252,-500.0,0.00064108,120]
[358503464,1745218246261,-500.0,0.00064108,120]
[358503465,1745218246272,-500.0,0.00064108,120]
[358503466,1745218246282,-500.0,0.00064108,120]
[358503467,1745218246291,-500.0,0.00064108,120]
[358503468,1745218246300,-207.49750375,0.00064108,120]
[358503469,1745218246311,-544.21315248,0.00064108,120]
[358503470,1745218246321,-506.38675903,0.00064108,120]
[358503471,1745218246331,-500.0,0.00064108,120]
[358503472,1745218246340,-500.0,0.00064108,120]
[358503473,1745218246349,-500.0,0.00064108,120]
[358503474,1745218246358,-500.0,0.00064108,120]
[358503475,1745218246367,-500.0,0.00064108,120]
[358503476,1745218246377,-500.0,0.00064108,120]
[358503477,1745218246386,-500.0,0.00064108,120]
[358503478,1745218246397,-500.0,0.00064108,120]
[358503479,1745218246406,-500.0,0.00064108,120]
[358503480,1745218246415,-500.0,0.00064108,120]
[358503481,1745218246424,-567.84039911,0.00064108,120]
[358503482,1745218246435,-509.57622763,0.00064108,120]
[358503483,1745218246444,-500.0,0.00064108,120]
[358503484,1745218246454,-500.0,0.00064108,120]
[358503485,1745218246463,-500.0,0.00064108,120]
[358503486,1745218246473,-500.0,0.00064108,120]
[358503487,1745218246483,-500.0,0.00064108,120]
[358503488,1745218246492,-500.0,0.00064108,120]
[358503489,1745218246502,-500.0,0.00064108,120]
[358503490,1745218246511,-500.0,0.00064108,120]
[358503491,1745218246520,-500.0,0.00064108,120]
[358503492,1745218246530,-500.0,0.00064108,120]
[358503493,1745218246540,-500.0,0.00064108,120]
[358503494,1745218246549,-500.0,0.00064108,120]
[358503495,1745218246558,-500.0,0.00064108,120]
[358503496,1745218246567,-509.49946541,0.00064108,120]
[358503497,1745218246576,-509.7846493,0.00064108,120]
[358503498,1745218246585,-591.99,0.00064108,120]
[358503499,1745218246594,-500.0,0.00064108,120]
[358503500,1745218246603,-500.0,0.00064108,120]
[358503501,1745218246613,-500.0,0.00064108,120]
[358503502,1745218246623,-500.0,0.00064108,120]
[358503503,1745218246633,-500.0,0.00064108,120]
[358503504,1745218246643,-500.0,0.00064108,120]
[358503505,1745218246652,-500.0,0.00064108,120]
[358503506,1745218246662,-500.0,0.00064108,120]
[358503507,1745218246671,-556.89168337,0.00064108,120]
[358503508,1745218246681,-500.0,0.00064108,120]
[358503509,1745218246690,-500.0,0.00064108,120]
[358503510,1745218246699,-500.0,0.00064108,120]
[358503511,1745218246709,-500.0,0.00064108,120]
[358503512,1745218246718,-500.0,0.00064108,120]
[358503513,1745218246727,-500.0,0.00064108,120]
[358503514,1745218246737,-515.35202144,0.00064108,120]
[358503515,1745218246747,-504.07390783,0.00064108,90]
[358503516,1745218246756,-500.0,0.00064108,120]
[358503517,1745218246765,-500.0,0.00064108,120]
[358503518,1745218246774,-515.9859842,0.00064108,120]
[358503519,1745218246784,-500.0,0.00064108,120]
[358503520,1745218246793,-500.0,0.00064108,120]
[358503521,1745218246803,-500.0,0.00064108,120]
[358503522,1745218246812,-508.62177945,0.00064108,120]
[358503523,1745218246821,-519.87985157,0.00064108,120]
[358503524,1745218246830,-500.0,0.00064108,120]
[358503525,1745218246840,-513.21362084,0.00064108,120]
[358503526,1745218246850,-500.0,0.00064108,120]